fUST/lending_fUST_20241031
["ID","MTS","AMOUNT","RATE_DAILY","PERIOD"]
[341059088,1730309402617,20700.39,0.00031436,2]
[341059089,1730309402887,12443.0221517,0.00031848,2]
[341059090,1730309402910,1955.89995763,0.00031848,2]
[341059101,1730309432589,-151.0,0.0003,120]
[341059102,1730309432598,-1957.08498776,0.00031848,2]
[341059103,1730309432620,-4344.38290291,0.00031848,2]
[341059104,1730309432629,-397.52331222,0.00031848,7]
[341059105,1730309432638,-20700.39,0.00031899,2]
[341059106,1730309432647,-151.0,0.00032,120]
[341059107,1730309432656,-342.94,0.00032726,10]
[341059108,1730309432666,-285.78,0.00032726,10]
[341059109,1730309432675,-20700.39,0.00032735,2]
[341059110,1730309432684,-20700.39,0.00032735,2]
[341059111,1730309432695,-15084.76450054,0.00032735,2]
[341059136,1730309440636,-210.80307118,0.00032734,2]
[341059137,1730309440646,-158.62088616,0.00032734,2]
[341059139,1730309440748,-328.8655174,0.00032734,2]
[341059140,1730309440760,-500.0,0.00032734,2]
[341059141,1730309440770,-500.0,0.00032734,2]
[341059142,1730309440780,-500.0,0.00032734,2]
[341059143,1730309440790,-180.75916454,0.00032734,2]
[341059144,1730309440800,-257.9155032,0.00032734,2]
[341059145,1730309440905,-263.1020161,0.00032734,2]
[341059146,1730309440915,-500.0,0.00032734,2]
[341059147,1730309440925,-388.63363633,0.00032734,2]
[341059148,1730309440935,-500.0,0.00032734,2]
[341059149,1730309440944,-500.0,0.00032734,2]
[341059150,1730309440955,-500.0,0.00032734,2]
[341059151,1730309440965,-500.0,0.00032734,2]
[341059152,1730309440975,-509.32625704,0.00032734,2]
[341059153,1730309440985,-5615.62549946,0.00032735,2]
[341059154,1730309440994,-20700.39,0.00032736,2]
[341059155,1730309441004,-20700.39,0.00032737,2]
[341059156,1730309441014,-20700.39,0.00032798,2]
[341059157,1730309441023,-20700.39,0.00032798,2]
[341059158,1730309441033,-500.0,0.00033567,5]
[341059159,1730309441042,-500.0,0.00033567,5]
[341059160,1730309441052,-500.0,0.00033567,5]
[341059161,1730309441062,-500.0,0.00033567,5]
[341059162,1730309441071,-500.0,0.00033567,2]
[341059163,1730309441081,-150.904,0.000338,2]
[341059164,1730309441090,-400.0,0.00033999,2]
[341059165,1730309441100,-400.0,0.00033999,2]
[341059166,1730309441109,-586.52235018,0.00034,2]
[341059167,1730309441119,-162.10676953,0.00034,5]
[341059168,1730309441130,-500.0,0.00034,5]
[341059169,1730309441140,-500.74501094,0.00034,5]
[341059170,1730309441150,-501.78410143,0.00034,5]
[341059171,1730309441160,-500.0,0.00034,5]
[341059172,1730309441169,-500.0,0.00034,5]
[341059173,1730309441179,-162.08733298,0.00034,5]
[341059174,1730309441188,-151.0,0.00034,14]
[341059175,1730309441197,-164.364599,0.00034,14]
[341059176,1730309441206,-151.0,0.00034,120]
[341059177,1730309441215,-1253.67401346,0.00034076,2]
[341059178,1730309441226,-151.0,0.00034076,14]
[341059179,1730309441236,-269.109126,0.00034076,14]
[341059180,1730309441245,-269.109126,0.00034076,14]
[341059181,1730309441255,-20700.39,0.00034382,2]
[341059182,1730309441265,-269.109126,0.00034383,14]
[341059183,1730309441275,-269.109126,0.00034383,14]
[341059184,1730309441285,-273.30785822,0.00034383,2]
[341059185,1730309441294,-3035.48780594,0.00034383,2]
[341059186,1730309441304,-2000.0,0.00034383,2]
[341059187,1730309441314,-1599.42814677,0.00034383,2]
[341059188,1730309441323,-300.0,0.00034383,2]
[341059189,1730309441333,-796.65637585,0.00034383,2]
[341059190,1730309441342,-516.23578644,0.00034383,2]
[341059191,1730309441351,-292.15206582,0.00034383,2]
[341059192,1730309441361,-4167.44232359,0.00034383,2]
[341059193,1730309441370,-338.37687898,0.00034383,2]
[341059194,1730309441381,-321.72333595,0.00034383,2]
[341059195,1730309441391,-287.06256128,0.00034383,2]
[341059196,1730309441401,-1190.14721697,0.00034383,2]
[341059197,1730309441411,-163.88638414,0.00034383,2]
[341059198,1730309441421,-4137.78725076,0.00034383,2]
[341059199,1730309441432,-1190.1889633,0.00034383,2]
[341059200,1730309441444,-154.92790544,0.00034383,2]
[341059201,1730309441454,-517.46318978,0.00034383,2]
[341059202,1730309441465,-1523.14934169,0.00034383,2]
[341059203,1730309441476,-438.88267562,0.00034383,2]
[341059204,1730309441487,-224.18175007,0.00034383,2]
[341059205,1730309441498,-1022.58262531,0.00034383,2]
[341059206,1730309441507,-1835.42863888,0.00034383,2]
[341059207,1730309441516,-908.49642042,0.00034383,2]
[341059208,1730309441527,-3066.86920585,0.00034383,2]
[341059209,1730309441537,-176.16465639,0.00034383,2]
[341059210,1730309441549,-460.40722484,0.00034383,2]
[341059211,1730309441558,-833.98808168,0.00034383,2]
[341059212,1730309441570,-226.15115505,0.00034383,2]
[341059213,1730309441579,-886.319,0.00034383,2]
[341059214,1730309441589,-1886.75455136,0.00034383,2]
[341059215,1730309441599,-221.68005252,0.00034383,2]
[341059216,1730309441608,-200.0,0.00034383,2]
[341059217,1730309441617,-4410.4314525,0.00034383,2]
[341059218,1730309441629,-186.36934909,0.00034383,2]
[341059219,1730309441640,-159.6970396,0.00034383,2]
[341059220,1730309441649,-362.0,0.00034521,2]
[341059221,1730309441658,-1253.67401346,0.00034794,2]
[341059222,1730309441668,-20700.39,0.00034996,2]
[341059223,1730309441677,-20700.39,0.00034996,2]
[341059224,1730309441686,-20700.39,0.00034996,2]
[341059225,1730309441695,-12499.773894,0.00034996,2]
[341059250,1730309443678,-151.0,0.00034383,14]
[341059251,1730309443689,-238.15,0.00034986,10]
[341059252,1730309443698,-802.89,0.00034996,2]
[341059253,1730309443737,-7397.726106,0.00034996,2]
[341059254,1730309443747,-151.0,0.00034997,14]
[341059255,1730309443757,-166.976418,0.00034997,14]
[341059256,1730309443768,-166.976418,0.00034997,14]
[341059257,1730309443777,-151.0,0.00034997,14]
[341059258,1730309443787,-151.0,0.00034997,14]
[341059259,1730309443797,-157.355519,0.00034997,14]
[341059260,1730309443807,-157.355519,0.00034997,14]
[341059261,1730309443816,-335.373942,0.00034997,14]
[341059262,1730309443825,-335.373942,0.00034997,14]
[341059263,1730309443835,-151.0,0.00034997,14]
[341059264,1730309443844,-151.0,0.00034997,14]
[341059265,1730309443855,-151.0,0.00034997,14]
[341059266,1730309443864,-151.0,0.00034997,14]
[341059267,1730309443876,-151.0,0.00034997,6]
[341059268,1730309443890,-151.0,0.00034997,6]
[341059269,1730309443900,-151.0,0.00034997,6]
[341059270,1730309443909,-151.0,0.00034997,6]
[341059271,1730309443919,-151.0,0.00034997,14]
[341059272,1730309443930,-151.0,0.00034997,14]
[341059273,1730309443941,-153.340352,0.00034997,14]
[341059274,1730309443954,-269.109126,0.00034997,14]
[341059275,1730309443963,-269.109126,0.00034997,14]
[341059276,1730309443973,-151.0,0.00034997,14]
[341059277,1730309443981,-151.0,0.00034998,14]
[341059278,1730309443991,-151.0,0.00034998,14]
[341059279,1730309444002,-151.0,0.00034998,14]
[341059280,1730309444012,-152.618787,0.00034998,14]
[341059281,1730309444022,-1513.0845675,0.00035,90]
[341059282,1730309444031,-619.70922816,0.00035,120]
[341059286,1730309449054,-514.462862,0.00032738,7]
[341059287,1730309449064,-186.20020894,0.00033567,2]
[341059288,1730309449073,-514.462862,0.00034076,14]
[341059289,1730309449083,-514.462862,0.00034383,14]
[341059290,1730309449093,-151.0,0.00034383,14]
[341059291,1730309449103,-514.462862,0.00034997,14]
[341059292,1730309449113,-151.0,0.00034997,14]
[341059293,1730309449123,-1421.81108864,0.00035,120]
[341059294,1730309449135,-150.112233,0.000352,15]
[341059295,1730309449145,-240.171296,0.000352,10]
[341059296,1730309449154,-150.112233,0.000353,10]
[341059297,1730309449163,-150.112233,0.000353,12]
[341059298,1730309449173,-5721.7814576,0.0003537,2]
[341059299,1730309449183,-20700.39,0.00035383,2]
[341059300,1730309449192,-20700.39,0.00035383,2]
[341059301,1730309449201,-20700.39,0.00035383,2]
[341059302,1730309449211,-166.976418,0.00035384,14]
[341059303,1730309449220,-166.976418,0.00035384,14]
[341059304,1730309449229,-151.0,0.00035384,14]
[341059305,1730309449238,-151.0,0.00035384,14]
[341059306,1730309449248,-157.355519,0.00035384,14]
[341059307,1730309449258,-157.355519,0.00035384,14]
[341059308,1730309449267,-335.373942,0.00035384,14]
[341059309,1730309449277,-335.373942,0.00035384,14]
[341059310,1730309449286,-151.0,0.00035384,14]
[341059311,1730309449296,-151.0,0.00035384,14]
[341059312,1730309449305,-151.0,0.00035384,6]
[341059313,1730309449315,-217.681874,0.00035384,6]
[341059314,1730309449326,-151.0,0.00035384,14]
[341059315,1730309449337,-269.109126,0.00035384,14]
[341059316,1730309449346,-269.109126,0.00035384,14]
[341059317,1730309449355,-1000.0,0.00035384,28]
[341059318,1730309449365,-1000.0,0.00035384,28]
[341059319,1730309449374,-1000.0,0.00035384,28]
[341059320,1730309449385,-1000.0,0.00035384,28]
[341059321,1730309449394,-1000.0,0.00035384,28]
[341059322,1730309449403,-1000.0,0.00035384,28]
[341059323,1730309449412,-1000.0,0.00035384,28]
[341059324,1730309449422,-1000.0,0.00035384,28]
[341059325,1730309449431,-1000.0,0.00035384,28]
[341059326,1730309449440,-1000.0,0.00035384,28]
[341059327,1730309449449,-1000.0,0.00035384,28]
[341059328,1730309449459,-1000.0,0.00035384,28]
[341059329,1730309449468,-1000.0,0.00035384,28]
[341059330,1730309449477,-1000.0,0.00035384,28]
[341059331,1730309449487,-1000.0,0.00035384,28]
[341059332,1730309449496,-1000.0,0.00035384,28]
[341059333,1730309449506,-1000.0,0.00035384,28]
[341059334,1730309449516,-1000.0,0.00035384,28]
[341059335,1730309449526,-1000.0,0.00035384,28]
[341059336,1730309449535,-1000.0,0.00035384,28]
[341059337,1730309449544,-286.83351512,0.00035384,28]
[341059338,1730309449554,-514.462862,0.00035384,14]
[341059339,1730309449564,-151.0,0.00035385,14]
[341059340,1730309449574,-151.0,0.00035385,14]
[341059341,1730309449583,-151.0,0.00035385,14]
[341059342,1730309449592,-151.0,0.00035399,14]
[341059343,1730309449601,-151.0,0.00035399,14]
[341059344,1730309449610,-151.0,0.00035399,14]
[341059345,1730309449620,-150.112233,0.000354,13]
[341059346,1730309449631,-150.112233,0.000354,19]
[341059347,1730309449640,-269.109126,0.00035443,14]
[341059348,1730309449652,-269.109126,0.00035443,14]
[341059349,1730309449661,-514.462862,0.00035443,14]
[341059350,1730309449671,-166.976418,0.00035471,14]
[341059351,1730309449680,-166.976418,0.00035471,14]
[341059352,1730309449689,-151.0,0.00035471,14]
[341059353,1730309449699,-151.0,0.00035471,14]
[341059354,1730309449707,-157.355519,0.00035471,14]
[341059355,1730309449718,-157.355519,0.00035471,14]
[341059356,1730309449727,-335.373942,0.00035471,14]
[341059357,1730309449737,-335.373942,0.00035471,14]
[341059358,1730309449747,-150.112233,0.000355,19]
[341059359,1730309449756,-150.112233,0.000355,11]
[341059360,1730309449769,-150.112233,0.000355,17]
[341059361,1730309449779,-1253.67401346,0.00035513,2]
[341059362,1730309449789,-150.112233,0.000356,15]
[341059363,1730309449798,-20700.39,0.00035609,2]
[341059364,1730309449807,-20700.39,0.00035609,2]
[341059365,1730309449817,-20700.39,0.00035609,2]
[341059366,1730309449827,-20700.39,0.00035609,2]
[341059367,1730309449836,-20700.39,0.00035609,2]
[341059368,1730309449845,-20700.46802405,0.00035609,2]
[341059369,1730309449855,-166.976418,0.0003561,14]
[341059370,1730309449865,-166.976418,0.0003561,14]
[341059371,1730309449875,-151.0,0.0003561,14]
[341059372,1730309449885,-279.997042,0.0003561,14]
[341059373,1730309449895,-157.355519,0.0003561,14]
[341059374,1730309449904,-157.355519,0.0003561,14]
[341059375,1730309449916,-335.373942,0.0003561,14]
[341059376,1730309449926,-335.373942,0.0003561,14]
[341059377,1730309449937,-151.0,0.0003561,14]
[341059378,1730309449948,-151.0,0.0003561,14]
[341059379,1730309449958,-266.668324,0.0003561,14]
[341059380,1730309449967,-151.0,0.0003561,6]
[341059381,1730309449976,-151.0,0.0003561,6]
[341059382,1730309449986,-151.0,0.0003561,14]
[341059383,1730309449995,-151.0,0.0003561,14]
[341059384,1730309450004,-269.109126,0.0003561,14]
[341059385,1730309450013,-269.109126,0.0003561,14]
[341059386,1730309450023,-514.462862,0.0003561,14]
[341059387,1730309450032,-151.0,0.00035611,14]
[341059388,1730309450042,-151.0,0.00035611,14]
[341059389,1730309450053,-151.0,0.00035611,14]
[341059390,1730309450063,-180.234491,0.00035611,14]
[341059391,1730309450072,-213.120934,0.00035611,14]
[341059392,1730309450083,-166.976418,0.00035612,14]
[341059393,1730309450092,-166.976418,0.00035612,14]
[341059394,1730309450101,-166.976418,0.00035612,14]
[341059395,1730309450110,-166.976418,0.00035612,14]
[341059396,1730309450119,-151.0,0.00035612,14]
[341059397,1730309450131,-151.0,0.00035612,14]
[341059398,1730309450140,-157.355519,0.00035612,14]
[341059399,1730309450150,-157.355519,0.00035612,14]
[341059400,1730309450159,-157.355519,0.00035612,14]
[341059401,1730309450168,-157.355519,0.00035612,14]
[341059402,1730309450178,-335.373942,0.00035612,14]
[341059403,1730309450187,-335.373942,0.00035612,14]
[341059404,1730309450196,-335.373942,0.00035612,14]
[341059405,1730309450207,-335.373942,0.00035612,14]
[341059406,1730309450217,-151.0,0.00035612,14]
[341059407,1730309450227,-151.0,0.00035612,14]
[341059408,1730309450237,-151.0,0.00035612,6]
[341059409,1730309450248,-151.0,0.00035612,6]
[341059410,1730309450257,-151.0,0.00035612,14]
[341059411,1730309450266,-269.109126,0.00035612,14]
[341059412,1730309450275,-269.109126,0.00035612,14]
[341059413,1730309450286,-269.109126,0.00035612,14]
[341059414,1730309450295,-269.109126,0.00035612,14]
[341059415,1730309450305,-151.0,0.00035613,14]
[341059416,1730309450315,-151.0,0.00035613,14]
[341059417,1730309450324,-151.0,0.00035613,14]
[341059418,1730309450333,-151.0,0.00035613,14]
[341059419,1730309450343,-151.0,0.00035613,14]
[341059420,1730309450352,-166.976418,0.00035613,14]
[341059421,1730309450362,-166.976418,0.00035613,14]
[341059422,1730309450372,-166.976418,0.00035613,14]
[341059423,1730309450383,-166.97641,0.00035613,14]
[341059424,1730309450393,-151.0,0.00035613,14]
[341059425,1730309450403,-151.0,0.00035613,14]
[341059426,1730309450413,-157.355519,0.00035613,14]
[341059427,1730309450422,-157.355519,0.00035613,14]
[341059428,1730309450432,-157.355519,0.00035613,14]
[341059429,1730309450442,-157.355516,0.00035613,14]
[341059430,1730309450527,-335.373942,0.00035613,14]
[341059431,1730309450538,-335.373942,0.00035613,14]
[341059432,1730309450547,-335.373942,0.00035613,14]
[341059433,1730309450557,-335.373945,0.00035613,14]
[341059434,1730309450566,-151.0,0.00035613,14]
[341059435,1730309450576,-151.0,0.00035613,14]
[341059436,1730309450585,-151.0,0.00035613,6]
[341059437,1730309450595,-151.0,0.00035613,6]
[341059438,1730309450605,-269.109126,0.00035613,14]
[341059439,1730309450614,-269.109117,0.00035613,14]
[341059440,1730309450623,-151.612243,0.00035614,14]
[341059441,1730309450634,-151.0,0.00035614,2]
[341059442,1730309450643,-151.0,0.00035614,14]
[341059443,1730309450653,-151.0,0.00035614,3]
[341059444,1730309450662,-151.0,0.00035614,14]
[341059445,1730309450672,-158.052513,0.00035614,14]
[341059446,1730309450682,-151.0,0.00035614,14]
[341059447,1730309450691,-151.0,0.00035614,14]
[341059448,1730309450700,-151.0,0.00035614,14]
[341059449,1730309450709,-151.0,0.00035614,14]
[341059450,1730309450719,-151.0,0.00035614,14]
[341059451,1730309450729,-151.0,0.00035614,14]
[341059452,1730309450738,-151.0,0.00035614,14]
[341059453,1730309450748,-151.0,0.00035614,14]
[341059454,1730309450758,-167.92441,0.00035614,14]
[341059455,1730309450771,-151.0,0.00035614,14]
[341059456,1730309450781,-151.0,0.00035614,14]
[341059457,1730309450790,-151.0,0.00035614,14]
[341059458,1730309450800,-151.0,0.00035614,14]
[341059459,1730309450811,-151.0,0.00035614,14]
[341059460,1730309450820,-151.0,0.00035614,14]
[341059461,1730309450829,-151.0,0.00035614,14]
[341059462,1730309450840,-151.0,0.00035614,14]
[341059463,1730309450851,-500.0,0.00035614,2]
[341059464,1730309450860,-151.0,0.00035614,14]
[341059465,1730309450869,-151.0,0.00035614,14]
[341059466,1730309450880,-151.0,0.00035615,2]
[341059467,1730309450889,-151.0,0.00035615,2]
[341059468,1730309450899,-151.0,0.00035615,2]
[341059469,1730309450908,-169.349205,0.00035615,2]
[341059470,1730309450918,-151.0,0.00035615,14]
[341059471,1730309450928,-151.0,0.00035615,14]
[341059472,1730309450938,-151.0,0.00035615,14]
[341059473,1730309450948,-151.0,0.00035615,14]
[341059474,1730309450959,-151.0,0.00035615,14]
[341059475,1730309450969,-175.361622,0.00035615,14]
[341059476,1730309450979,-335.0,0.00035616,5]
[341059477,1730309450989,-500.0,0.00035616,5]
[341059478,1730309450998,-500.0,0.00035616,5]
[341059479,1730309451009,-504.68947118,0.00035616,5]
[341059480,1730309451019,-500.0,0.00035616,5]
[341059481,1730309451030,-500.0,0.00035616,5]
[341059482,1730309451040,-500.0,0.00035616,5]
[341059483,1730309451051,-500.0,0.00035616,5]
[341059484,1730309451061,-503.02457544,0.00035616,5]
[341059485,1730309451071,-500.0,0.00035616,5]
[341059486,1730309451080,-555.21795667,0.00035616,5]
[341059487,1730309451092,-500.0,0.00035616,5]
[341059488,1730309451104,-500.0,0.00035616,5]
[341059489,1730309451114,-200.0,0.00035616,5]
[341059490,1730309451125,-500.0,0.00035616,5]
[341059491,1730309451143,-500.0,0.00035616,5]
[341059492,1730309451153,-386.06304378,0.00035616,5]
[341059493,1730309451163,-500.0,0.00035616,5]
[341059494,1730309451174,-581.12283527,0.00035616,5]
[341059495,1730309451184,-503.53819633,0.00035616,5]
[341059496,1730309451193,-503.91347764,0.00035616,5]
[341059497,1730309451204,-500.0,0.00035616,5]
[341059498,1730309451214,-503.20280102,0.00035616,5]
[341059499,1730309451224,-500.0,0.00035616,5]
[341059500,1730309451234,-500.0,0.00035616,5]
[341059501,1730309451245,-503.16302667,0.00035616,5]
[341059502,1730309451256,-579.28,0.00035616,5]
[341059503,1730309451265,-500.0,0.00035616,5]
[341059504,1730309451276,-385.78738381,0.00035616,5]
[341059505,1730309451286,-503.4641707,0.00035616,5]
[341059506,1730309451295,-502.92575867,0.00035616,5]
[341059507,1730309451307,-500.0,0.00035616,5]
[341059508,1730309451316,-500.0,0.00035616,5]
[341059509,1730309451325,-506.657487,0.00035616,5]
[341059510,1730309451336,-500.0,0.00035616,5]
[341059511,1730309451344,-500.0,0.00035616,5]
[341059512,1730309451355,-500.0,0.00035616,5]
[341059513,1730309451364,-158.00490659,0.00035616,5]
[341059514,1730309451374,-614.38255291,0.00035616,5]
[341059515,1730309451385,-506.70028834,0.00035616,5]
[341059516,1730309451394,-500.0,0.00035616,5]
[341059517,1730309451404,-500.0,0.00035616,5]
[341059518,1730309451414,-500.0,0.00035616,5]
[341059519,1730309451423,-592.2401475,0.00035616,5]
[341059520,1730309451433,-552.97058087,0.00035616,5]
[341059521,1730309451443,-500.0,0.00035616,5]
[341059522,1730309451455,-500.0,0.00035616,5]
[341059523,1730309451464,-505.70865017,0.00035616,5]
[341059524,1730309451476,-500.0,0.00035616,5]
[341059525,1730309451485,-500.0,0.00035616,5]
[341059526,1730309451495,-500.0,0.00035616,5]
[341059527,1730309451505,-500.0,0.00035616,5]
[341059528,1730309451514,-500.0,0.00035616,5]
[341059529,1730309451524,-500.0,0.00035616,5]
[341059530,1730309451533,-500.0,0.00035616,5]
[341059531,1730309451543,-500.0,0.00035616,5]
[341059532,1730309451552,-500.0,0.00035616,5]
[341059533,1730309451562,-500.0,0.00035616,5]
[341059534,1730309451572,-500.0,0.00035616,5]
[341059535,1730309451581,-500.0,0.00035616,5]
[341059536,1730309451591,-508.40498539,0.00035616,5]
[341059537,1730309451600,-500.0,0.00035616,5]
[341059538,1730309451611,-500.0,0.00035616,5]
[341059539,1730309451621,-500.0,0.00035616,5]
[341059540,1730309451633,-500.0,0.00035616,5]
[341059541,1730309451645,-503.61669075,0.00035616,5]
[341059542,1730309451655,-500.0,0.00035616,5]
[341059543,1730309451665,-503.23527967,0.00035616,5]
[341059544,1730309451674,-500.0,0.00035616,5]
[341059545,1730309451684,-500.0,0.00035616,5]
[341059546,1730309451694,-500.0,0.00035616,5]
[341059547,1730309451703,-500.0,0.00035616,5]
[341059548,1730309451713,-500.0,0.00035616,5]
[341059549,1730309451722,-500.0,0.00035616,5]
[341059550,1730309451732,-151.0,0.00035616,14]
[341059551,1730309451743,-151.0,0.00035616,14]
[341059552,1730309451753,-151.0,0.00035616,14]
[341059553,1730309451764,-178.072312,0.00035616,14]
[341059554,1730309451774,-500.0,0.00035616,5]
[341059555,1730309451783,-504.28285599,0.00035616,5]
[341059556,1730309451792,-500.0,0.00035616,5]
[341059557,1730309451801,-500.0,0.00035616,5]
[341059558,1730309451811,-500.0,0.00035616,5]
[341059559,1730309451822,-500.0,0.00035616,5]
[341059560,1730309451832,-500.0,0.00035616,5]
[341059561,1730309451842,-500.0,0.00035616,5]
[341059562,1730309451853,-500.0,0.00035616,5]
[341059563,1730309451862,-500.0,0.00035616,5]
[341059564,1730309451871,-500.0,0.00035616,5]
[341059565,1730309451881,-500.0,0.00035616,5]
[341059566,1730309451890,-500.0,0.00035616,5]
[341059567,1730309451900,-500.0,0.00035616,5]
[341059568,1730309451910,-500.0,0.00035616,5]
[341059569,1730309451922,-500.0,0.00035616,5]
[341059570,1730309451932,-500.0,0.00035616,5]
[341059571,1730309451942,-500.0,0.00035616,5]
[341059572,1730309451952,-503.95296235,0.00035616,5]
[341059573,1730309451963,-500.0,0.00035616,5]
[341059574,1730309451972,-500.0,0.00035616,5]
[341059575,1730309451981,-500.0,0.00035616,5]
[341059576,1730309451990,-495.57851234,0.00035616,5]
[341059577,1730309452001,-500.0,0.00035616,5]
[341059578,1730309452013,-500.0,0.00035616,5]
[341059579,1730309452022,-500.0,0.00035616,5]
[341059580,1730309452033,-500.91615239,0.00035616,5]
[341059581,1730309452045,-506.11238416,0.00035616,5]
[341059582,1730309452055,-500.0,0.00035616,5]
[341059583,1730309452065,-500.0,0.00035616,5]
[341059584,1730309452075,-500.0,0.00035616,5]
[341059585,1730309452084,-500.0,0.00035616,5]
[341059586,1730309452096,-500.0,0.00035616,5]
[341059587,1730309452107,-500.0,0.00035616,5]
[341059588,1730309452118,-500.0,0.00035616,5]
[341059589,1730309452128,-500.0,0.00035616,5]
[341059590,1730309452138,-500.0,0.00035616,5]
[341059591,1730309452148,-1000.0,0.00035616,5]
[341059592,1730309452158,-500.0,0.00035616,5]
[341059593,1730309452168,-500.0,0.00035616,5]
[341059594,1730309452178,-500.0,0.00035616,5]
[341059595,1730309452256,-500.0,0.00035616,5]
[341059596,1730309452266,-500.0,0.00035616,5]
[341059597,1730309452275,-500.0,0.00035616,5]
[341059598,1730309452286,-500.0,0.00035616,5]
[341059599,1730309452298,-500.0,0.00035616,5]
[341059600,1730309452309,-500.0,0.00035616,5]
[341059601,1730309452320,-500.0,0.00035616,5]
[341059602,1730309452330,-500.0,0.00035616,5]
[341059603,1730309452339,-500.0,0.00035616,5]
[341059604,1730309452349,-407.93108845,0.00035616,5]
[341059605,1730309452359,-500.0,0.00035616,5]
[341059606,1730309452369,-500.0,0.00035616,5]
[341059607,1730309452380,-1072.53,0.00035616,5]
[341059608,1730309452389,-500.0,0.00035616,5]
[341059609,1730309452399,-500.0,0.00035616,5]
[341059610,1730309452411,-500.0,0.00035616,5]
[341059611,1730309452422,-500.0,0.00035616,5]
[341059612,1730309452432,-503.0966303,0.00035616,5]
[341059613,1730309452443,-500.0,0.00035616,5]
[341059614,1730309452452,-500.0,0.00035616,5]
[341059615,1730309452463,-500.0,0.00035616,5]
[341059616,1730309452473,-500.0,0.00035616,5]
[341059617,1730309452482,-500.0,0.00035616,5]
[341059618,1730309452491,-500.0,0.00035616,5]
[341059619,1730309452501,-500.0,0.00035616,5]
[341059620,1730309452511,-500.0,0.00035616,5]
[341059621,1730309452522,-500.0,0.00035616,5]
[341059622,1730309452532,-500.0,0.00035616,5]
[341059623,1730309452542,-500.0,0.00035616,5]
[341059624,1730309452551,-500.0,0.00035616,5]
[341059625,1730309452561,-503.17021551,0.00035616,5]
[341059626,1730309452571,-500.0,0.00035616,5]
[341059627,1730309452580,-500.0,0.00035616,5]
[341059628,1730309452590,-500.0,0.00035616,5]
[341059629,1730309452600,-158.10963863,0.00035616,5]
[341059630,1730309452610,-500.0,0.00035616,5]
[341059631,1730309452619,-597.13,0.00035616,5]
[341059632,1730309452628,-500.0,0.00035616,5]
[341059633,1730309452638,-500.0,0.00035616,5]
[341059634,1730309452649,-500.0,0.00035616,5]
[341059635,1730309452658,-500.0,0.00035616,5]
[341059636,1730309452668,-338.60131057,0.00035616,5]
[341059637,1730309452677,-547.45114355,0.00035616,5]
[341059638,1730309452686,-500.0,0.00035616,5]
[341059639,1730309452696,-500.0,0.00035616,5]
[341059640,1730309452706,-340.61858136,0.00035616,5]
[341059641,1730309452715,-500.0,0.00035616,5]
[341059642,1730309452724,-500.0,0.00035616,5]
[341059643,1730309452733,-500.0,0.00035616,5]
[341059644,1730309452743,-500.0,0.00035616,5]
[341059645,1730309452752,-500.0,0.00035616,5]
[341059646,1730309452763,-500.0,0.00035616,5]
[341059647,1730309452774,-504.83740048,0.00035616,5]
[341059648,1730309452783,-500.0,0.00035616,5]
[341059649,1730309452792,-500.0,0.00035616,5]